fUSD/lending_fUSD_20260607
["ID","MTS","AMOUNT","RATE_DAILY","PERIOD"]
[424396296,1780826674000,-297.374597,0.00037808,30]
[424396297,1780826674000,-245.368688,0.00037808,30]
[424396299,1780826674000,-297.374597,0.00037808,30]
[424396300,1780826674000,-297.374597,0.00037808,30]
[424396302,1780826674000,-297.374597,0.00037808,30]
[424396301,1780826674000,-297.374597,0.00037808,30]
[424396303,1780826674000,-297.374597,0.00037808,30]
[424396305,1780826674000,-297.374597,0.00037808,30]
[424396304,1780826674000,-297.374597,0.00037808,30]
[424396306,1780826674000,-297.374597,0.00037808,30]
[424396307,1780826674000,-297.374597,0.00037808,30]
[424396308,1780826674000,-297.374597,0.00037808,30]
[424396309,1780826674000,-297.374597,0.00037808,30]
[424396310,1780826675000,-297.374597,0.00037808,30]
[424396311,1780826675000,-297.374597,0.00037808,30]
[424396312,1780826675000,-297.374597,0.00037808,30]
[424396313,1780826675000,-297.374597,0.00037808,30]
[424396314,1780826675000,-297.374588,0.00037808,30]
[424396316,1780826675000,-151.0,0.00037808,30]
[424396317,1780826675000,-151.0,0.00037808,30]
[424396318,1780826675000,-151.0,0.00037808,30]
[424396320,1780826675000,-151.0,0.00037808,30]
[424396319,1780826675000,-151.0,0.00037808,30]
[424396321,1780826675000,-151.0,0.00037808,30]
[424396322,1780826675000,-151.0,0.00037808,30]
[424396323,1780826675000,-151.0,0.00037808,30]
[424396315,1780826675000,-247.685225,0.00037808,30]
[424396330,1780826676000,-248.44977,0.00037808,30]
[424396326,1780826676000,-151.0,0.00037808,30]
[424396325,1780826676000,-151.0,0.00037808,30]
[424396327,1780826676000,-151.0,0.00037808,30]
[424396328,1780826676000,-151.0,0.00037808,30]
[424396329,1780826676000,-165.720706,0.00037808,30]
[424396324,1780826676000,-151.0,0.00037808,30]
[424396333,1780826676000,-248.44977,0.00037808,30]
[424396332,1780826676000,-248.44977,0.00037808,30]
[424396334,1780826676000,-158.815931,0.00037808,30]
[424396335,1780826676000,-158.815931,0.00037808,30]
[424396336,1780826676000,-158.815931,0.00037808,30]
[424396337,1780826676000,-158.815931,0.00037808,30]
[424396338,1780826676000,-11378.196662,0.00037808,30]
[424396331,1780826676000,-248.44977,0.00037808,30]
[424396339,1780826677000,-151.0,0.00037808,30]
[424396340,1780826677000,-11378.196662,0.00037808,30]
[424396341,1780826677000,-179.32823,0.00037808,30]
[424396342,1780826677000,-11378.196662,0.00037808,30]
[424396343,1780826677000,-11378.196662,0.00037808,30]
[424396345,1780826677000,-262.704673,0.00037808,30]
[424396346,1780826677000,-180.508119,0.00037808,30]
[424396347,1780826677000,-471.274136,0.00037808,30]
[424396348,1780826677000,-357.924577,0.00037808,30]
[424396349,1780826677000,-151.0,0.00037808,30]
[424396350,1780826677000,-471.274136,0.00037808,30]
[424396351,1780826677000,-180.508119,0.00037808,30]
[424396352,1780826677000,-357.924577,0.00037808,30]
[424396344,1780826677000,-151.0,0.00037808,30]
[424396357,1780826678000,-180.508119,0.00037808,30]
[424396353,1780826678000,-151.0,0.00037808,30]
[424396354,1780826678000,-218.686703,0.00037808,30]
[424396355,1780826678000,-190.360108,0.00037808,30]
[424396356,1780826678000,-471.274136,0.00037808,30]
[424396359,1780826678000,-218.686703,0.00037808,30]
[424396365,1780826678000,-151.0,0.00037808,30]
[424396360,1780826678000,-357.924577,0.00037808,30]
[424396361,1780826678000,-190.360108,0.00037808,30]
[424396362,1780826678000,-471.274136,0.00037808,30]
[424396363,1780826678000,-180.508119,0.00037808,30]
[424396364,1780826678000,-166.916901,0.00037808,30]
[424396366,1780826678000,-218.686703,0.00037808,30]
[424396358,1780826678000,-151.0,0.00037808,30]
[424396371,1780826679000,-166.916901,0.00037808,30]
[424396367,1780826679000,-200.25284,0.00037808,30]
[424396368,1780826679000,-357.924577,0.00037808,30]
[424396369,1780826679000,-190.360108,0.00037808,30]
[424396370,1780826679000,-297.357438,0.00037808,30]
[424396372,1780826679000,-218.686703,0.00037808,30]
[424396373,1780826679000,-200.25284,0.00037808,30]
[424396376,1780826679000,-297.357438,0.00037808,30]
[424396381,1780826679000,-221.650348,0.00037808,30]
[424396375,1780826679000,-190.360108,0.00037808,30]
[424396377,1780826679000,-166.916901,0.00037808,30]
[424396378,1780826679000,-252.749108,0.00037808,30]
[424396379,1780826679000,-200.25284,0.00037808,30]
[424396380,1780826679000,-151.0,0.00037808,30]
[424396374,1780826679000,-151.0,0.00037808,30]
[424396382,1780826680000,-297.357438,0.00037808,30]
[424396383,1780826680000,-166.916901,0.00037808,30]
[424396384,1780826680000,-200.25284,0.00037808,30]
[424396385,1780826680000,-221.650348,0.00037808,30]
[424396386,1780826680000,-297.357438,0.00037808,30]
[424396387,1780826680000,-221.650348,0.00037808,30]
[424396388,1780826680000,-458.838726,0.00037808,30]
[424396389,1780826680000,-212.080444,0.00037808,30]
[424396392,1780826680000,-221.650348,0.00037808,30]
[424396391,1780826680000,-297.413667,0.00037808,30]
[424396393,1780826680000,-458.838726,0.00037808,30]
[424396395,1780826680000,-151.0,0.00037808,30]
[424396394,1780826680000,-212.080444,0.00037808,30]
[424396390,1780826680000,-151.0,0.00037808,30]
[424396399,1780826681000,-151.0,0.00037808,30]
[424396400,1780826681000,-212.080444,0.00037808,30]
[424396397,1780826681000,-212.080444,0.00037808,30]
[424396396,1780826681000,-458.838726,0.00037808,30]
[424396401,1780826681000,-282.935461,0.00037808,30]
[424396398,1780826681000,-458.838726,0.00037808,30]
[424396402,1780826681000,-151.0,0.00037808,30]
[424396410,1780826681000,-507.293573,0.00037808,30]
[424396403,1780826681000,-282.935461,0.00037808,30]
[424396405,1780826681000,-282.935461,0.00037808,30]
[424396406,1780826681000,-282.935461,0.00037808,30]
[424396407,1780826681000,-507.293573,0.00037808,30]
[424396408,1780826681000,-507.293573,0.00037808,30]
[424396409,1780826681000,-507.293573,0.00037808,30]
[424396404,1780826681000,-151.0,0.00037808,30]
[424396415,1780826682000,-700.0,0.0003782,60]
[424396411,1780826682000,-386.031062,0.00037808,30]
[424396412,1780826682000,-386.031062,0.00037808,30]
[424396413,1780826682000,-386.031062,0.00037808,30]
[424396414,1780826682000,-386.031062,0.00037808,30]
[424396416,1780826682000,-500.0,0.0003782,60]
[424396423,1780826682000,-3712.58,0.00037869,60]
[424396418,1780826682000,-150.0,0.00037826,30]
[424396420,1780826682000,-954.73215848,0.00037837,30]
[424396419,1780826682000,-186.47,0.00037826,30]
[424396421,1780826682000,-350.0,0.00037837,47]
[424396422,1780826682000,-150.0,0.00037859,120]
[424396424,1780826682000,-1074.9,0.000379,120]
[424396417,1780826682000,-150.0,0.00037826,30]
[424396425,1780826683000,-400.0,0.000379,30]
[424396426,1780826683000,-545.8584347,0.000379,120]
[424396427,1780826683000,-50732.2471042,0.000379,31]
[424396428,1780826683000,-151.0,0.000379,30]
[424396430,1780826683000,-233.146684,0.000379,30]
[424396429,1780826683000,-201.548448,0.000379,30]
[424396431,1780826683000,-301.303012,0.000379,30]
[424396434,1780826683000,-342.535888,0.000379,30]
[424396432,1780826683000,-301.303012,0.000379,30]
[424396436,1780826683000,-301.303012,0.000379,30]
[424396435,1780826683000,-342.535888,0.000379,30]
[424396437,1780826683000,-342.535888,0.000379,30]
[424396438,1780826683000,-438.48532,0.000379,30]
[424396439,1780826683000,-342.535888,0.000379,30]
[424396433,1780826683000,-301.303012,0.000379,30]
[424396443,1780826684000,-151.0,0.000379,30]
[424396442,1780826684000,-438.48532,0.000379,30]
[424396449,1780826684000,-204.168338,0.000379,30]
[424396440,1780826684000,-151.0,0.000379,30]
[424396444,1780826684000,-362.281435,0.000379,30]
[424396441,1780826684000,-362.281435,0.000379,30]
[424396445,1780826684000,-151.0,0.000379,30]
[424396450,1780826684000,-438.48532,0.000379,30]
[424396447,1780826684000,-345.0,0.000379,30]
[424396448,1780826684000,-362.281435,0.000379,30]
[424396453,1780826684000,-345.0,0.000379,30]
[424396451,1780826684000,-345.0,0.000379,30]
[424396452,1780826684000,-362.281435,0.000379,30]
[424396446,1780826684000,-438.48532,0.000379,30]
[424396454,1780826685000,-151.0,0.000379,30]
[424396455,1780826685000,-345.0,0.000379,30]
[424396456,1780826685000,-151.0,0.000379,30]
[424396458,1780826685000,-151.0,0.000379,30]
[424396457,1780826685000,-151.0,0.000379,30]
[424396459,1780826685000,-151.0,0.000379,30]
[424396460,1780826685000,-151.0,0.000379,30]
[424396462,1780826685000,-618.5830212,0.000379,120]
[424396463,1780826685000,-500.0,0.00037923,43]
[424396464,1780826685000,-150.0,0.00037942,120]
[424396465,1780826685000,-150.0,0.00037942,120]
[424396466,1780826685000,-410.59,0.00037957,120]
[424396467,1780826685000,-255.64903897,0.0003796,120]
[424396468,1780826685000,-170.43269264,0.00037962,120]
[424396461,1780826685000,-234.346973,0.000379,30]
[424396473,1780826686000,-10000.0,0.00038,120]
[424396469,1780826686000,-150.0,0.00037966,120]
[424396470,1780826686000,-761853.19959579,0.0003798,30]
[424396472,1780826686000,-10000.0,0.00038,30]
[424396474,1780826686000,-1000.0,0.00038,120]
[424396475,1780826686000,-1000.0,0.00038,120]
[424396471,1780826686000,-350.0,0.0003799,48]
[424396476,1780826686000,-83318.20610776,0.00038,120]
[424396478,1780826686000,-5136.17,0.00038,120]
[424396480,1780826686000,-2991.1818,0.00038,120]
[424396479,1780826686000,-285.11208414,0.00038,120]
[424396481,1780826686000,-170.0,0.00038,60]
[424396482,1780826686000,-200.0,0.00038,120]
[424396477,1780826686000,-203470.3628844,0.00038,120]
[424396483,1780826687000,-80000.0,0.00038,30]
[424396485,1780826687000,-30000.0,0.00038,120]
[424396486,1780826687000,-300.0,0.00038,30]
[424396487,1780826687000,-1000.82897,0.00038,120]
[424396488,1780826687000,-349.0,0.00038,30]
[424396484,1780826687000,-65095.14971446,0.00038,100]
[424396489,1780826687000,-16160.0,0.00038,30]
[424396491,1780826687000,-65626.41690446,0.00038,120]
[424396493,1780826687000,-151.0,0.00038,120]
[424396492,1780826687000,-156.0,0.00038,120]
[424396494,1780826687000,-23609.18138898,0.00038,38]
[424396490,1780826687000,-300.0,0.00038,120]
[424396495,1780826688000,-416.29672143,0.00038,120]
[424396497,1780826688000,-280.048462,0.00038,120]
[424396496,1780826688000,-584.00295617,0.00038,30]
[424396498,1780826688000,-1000.0,0.00038,120]
[424396500,1780826688000,-11378.196662,0.00038,30]
[424396499,1780826688000,-167.0,0.00038,120]
[424396503,1780826688000,-11378.196662,0.00038,30]
[424396502,1780826688000,-11378.196662,0.00038,30]
[424396504,1780826688000,-11378.196662,0.00038,30]
[424396505,1780826688000,-151.0,0.00038,30]
[424396506,1780826688000,-180.508119,0.00038,30]
[424396507,1780826688000,-471.274136,0.00038,30]
[424396508,1780826688000,-357.924577,0.00038,30]
[424396501,1780826688000,-151.0,0.00038,30]
[424396513,1780826689000,-151.0,0.00038,30]
[424396511,1780826689000,-180.508119,0.00038,30]
[424396512,1780826689000,-357.924577,0.00038,30]
[424396510,1780826689000,-471.274136,0.00038,30]
[424396509,1780826689000,-151.0,0.00038,30]
[424396516,1780826689000,-471.274136,0.00038,30]
[424396514,1780826689000,-218.686703,0.00038,30]
[424396515,1780826689000,-190.360108,0.00038,30]
[424396517,1780826689000,-180.508119,0.00038,30]
[424396518,1780826689000,-151.0,0.00038,30]
[424396520,1780826689000,-357.924577,0.00038,30]
[424396519,1780826689000,-218.686703,0.00038,30]
[424396521,1780826689000,-190.360108,0.00038,30]
[424396522,1780826689000,-471.274136,0.00038,30]
[424396523,1780826690000,-180.508119,0.00038,30]
[424396524,1780826690000,-166.916901,0.00038,30]
[424396526,1780826690000,-218.686703,0.00038,30]
[424396525,1780826690000,-295.342134,0.00038,30]
[424396527,1780826690000,-200.25284,0.00038,30]
[424396528,1780826690000,-357.924577,0.00038,30]
[424396530,1780826690000,-297.357438,0.00038,30]
[424396529,1780826690000,-190.360108,0.00038,30]
[424396531,1780826690000,-166.916901,0.00038,30]
[424396532,1780826690000,-218.686703,0.00038,30]
[424396533,1780826690000,-200.25284,0.00038,30]
[424396534,1780826690000,-151.0,0.00038,30]
[424396535,1780826690000,-190.360108,0.00038,30]
[424396536,1780826690000,-297.357438,0.00038,30]
[424396537,1780826691000,-166.916901,0.00038,30]
[424396538,1780826691000,-169.942071,0.00038,30]
[424396540,1780826691000,-221.650348,0.00038,30]
[424396539,1780826691000,-200.25284,0.00038,30]
[424396541,1780826691000,-297.357438,0.00038,30]
[424396542,1780826691000,-166.916901,0.00038,30]
[424396544,1780826691000,-200.25284,0.00038,30]
[424396551,1780826691000,-212.080444,0.00038,30]
[424396545,1780826691000,-221.650348,0.00038,30]
[424396546,1780826691000,-297.357438,0.00038,30]
[424396547,1780826691000,-244.008753,0.00038,30]
[424396548,1780826691000,-221.650348,0.00038,30]
[424396550,1780826691000,-244.008753,0.00038,30]
[424396549,1780826691000,-458.838726,0.00038,30]
[424396543,1780826691000,-244.008753,0.00038,30]
[424396555,1780826692000,-244.008753,0.00038,30]
[424396553,1780826692000,-221.650348,0.00038,30]
[424396552,1780826692000,-288.257233,0.00038,30]
[424396554,1780826692000,-458.838726,0.00038,30]
[424396556,1780826692000,-212.080444,0.00038,30]
[424396557,1780826692000,-458.838726,0.00038,30]
[424396565,1780826692000,-282.935461,0.00038,30]
[424396560,1780826692000,-151.0,0.00038,30]
[424396559,1780826692000,-212.080444,0.00038,30]
[424396561,1780826692000,-458.838726,0.00038,30]
[424396563,1780826692000,-282.935461,0.00038,30]
[424396562,1780826692000,-212.080444,0.00038,30]
[424396564,1780826692000,-151.0,0.00038,30]
[424396558,1780826692000,-151.0,0.00038,30]
[424396566,1780826693000,-151.0,0.00038,30]
[424396567,1780826693000,-282.935461,0.00038,30]
[424396568,1780826693000,-282.935461,0.00038,30]
[424396569,1780826693000,-151.0,0.00038,30]
[424396571,1780826693000,-507.293573,0.00038,30]
[424396570,1780826693000,-507.293573,0.00038,30]
[424396572,1780826693000,-507.293573,0.00038,30]
[424396573,1780826693000,-507.293573,0.00038,30]
[424396575,1780826693000,-386.031062,0.00038,30]
[424396576,1780826693000,-386.031062,0.00038,30]
[424396577,1780826693000,-386.031062,0.00038,30]
[424396579,1780826693000,-151.0,0.00038,120]
[424396578,1780826693000,-151.0,0.00038,30]
[424396580,1780826693000,-151.0,0.00038007,60]
[424396574,1780826693000,-386.031062,0.00038,30]
[424396585,1780826694000,-150.0,0.00038036,30]
[424396581,1780826694000,-500.0,0.0003801,120]
[424396582,1780826694000,-150.0,0.0003802,120]
[424396583,1780826694000,-781.89125851,0.00038021,30]
[424396584,1780826694000,-150.0,0.0003803,120]
[424396586,1780826694000,-151.44543075,0.00038036,30]
[424396589,1780826694000,-150.0,0.00038051,120]
[424396587,1780826694000,-150.0,0.00038036,30]
[424396593,1780826694000,-450.0,0.00038082,30]
[424396590,1780826694000,-7796.51989653,0.00038076,120]
[424396591,1780826694000,-150.0,0.00038076,120]
[424396592,1780826694000,-50167.76,0.00038078,30]
[424396594,1780826694000,-272.31,0.0003809,93]
[424396588,1780826694000,-150.0,0.00038046,120]
[424396595,1780826695000,-80470.77059756,0.000381,33]
[424396596,1780826695000,-323.25936243,0.000381,33]
[424396597,1780826695000,-265.56413491,0.000381,33]
[424396598,1780826695000,-347.30548639,0.000381,33]
[424396599,1780826695000,-248.44977,0.000381,30]
[424396600,1780826695000,-248.44977,0.000381,30]
[424396601,1780826695000,-248.44977,0.000381,30]
[424396602,1780826695000,-248.44977,0.000381,30]
[424396604,1780826695000,-158.815931,0.000381,30]
[424396603,1780826695000,-158.815931,0.000381,30]
[424396605,1780826695000,-158.815931,0.000381,30]
[424396606,1780826695000,-158.815931,0.000381,30]
[424396607,1780826695000,-216.88,0.00038108,30]
[424396608,1780826695000,-216.88,0.00038108,120]
[424396609,1780826695000,-150.0,0.00038128,120]
[424396610,1780826696000,-350.0,0.00038137,49]
[424396612,1780826696000,-1148.0,0.00038176,70]
[424396613,1780826696000,-297.62286141,0.0003818,30]
[424396614,1780826696000,-150.0,0.00038181,120]
[424396616,1780826696000,-215.65467141,0.00038188,120]
[424396615,1780826696000,-216.81334447,0.00038188,120]
[424396611,1780826696000,-3712.58,0.00038165,60]
[424396618,1780826696000,-214.57093055,0.00038188,120]
[424396620,1780826696000,-209.0290413,0.00038188,120]
[424396619,1780826696000,-206.79450403,0.00038188,120]
[424396621,1780826696000,-156.57,0.0003819,60]
[424396623,1780826696000,-181.84,0.00038191,60]
[424396622,1780826696000,-590.20995814,0.0003819,60]
[424396617,1780826696000,-215.65467141,0.00038188,120]
[424396624,1780826697000,-185.4,0.00038197,60]
[424396626,1780826697000,-201.32126961,0.000382,120]
[424396627,1780826697000,-2324.09,0.000382,60]
[424396628,1780826697000,-169.7688206,0.000382,60]
[424396629,1780826697000,-298.63340222,0.000382,30]
[424396630,1780826697000,-245.217769,0.000382,30]
[424396625,1780826697000,-154.5,0.00038197,60]
[424396632,1780826697000,-239.58599163,0.00038204,60]
[424396633,1780826697000,-150.89,0.00038204,60]
[424396634,1780826697000,-410.59,0.00038204,120]
[424396636,1780826697000,-429.62460773,0.00038216,120]
[424396635,1780826697000,-9174.0,0.00038208,60]
[424396637,1780826697000,-1500.35099034,0.00038216,60]
[424396638,1780826697000,-181.56,0.0003822,60]
[424396631,1780826697000,-157.54265919,0.000382,120]
[424396639,1780826698000,-156.57,0.0003824,60]
[424396640,1780826698000,-181.84,0.00038241,60]
[424396642,1780826698000,-154.5,0.00038247,60]
[424396641,1780826698000,-185.41283302,0.00038247,60]
[424396643,1780826698000,-30000.0,0.0003825,120]
[424396644,1780826698000,-150.90032042,0.00038254,60]
[424396647,1780826698000,-181.56,0.0003827,60]
[424396646,1780826698000,-150.0,0.00038267,120]
[424396649,1780826698000,-422.98,0.00038274,30]
[424396648,1780826698000,-300.0,0.00038274,30]
[424396650,1780826698000,-150.0,0.00038275,30]
[424396651,1780826698000,-170.97,0.00038275,30]
[424396652,1780826698000,-150.0,0.00038275,30]
[424396645,1780826698000,-150.0,0.00038264,120]
[424396657,1780826699000,-500.0,0.00038275,30]
[424396658,1780826699000,-500.0,0.00038275,30]
[424396656,1780826699000,-500.0,0.00038275,30]
[424396661,1780826699000,-150.0,0.00038281,30]
[424396654,1780826699000,-300.0,0.00038275,30]
[424396653,1780826699000,-192.41,0.00038275,30]
[424396655,1780826699000,-300.0,0.00038275,30]
[424396659,1780826699000,-500.0,0.00038275,30]
[424396664,1780826699000,-271.69,0.00038288,30]
[424396662,1780826699000,-150.0,0.00038281,30]
[424396663,1780826699000,-150.0,0.00038281,30]
[424396668,1780826699000,-152.86739618,0.000383,120]
[424396666,1780826699000,-181.84,0.00038291,60]
[424396665,1780826699000,-156.57667091,0.0003829,60]
[424396667,1780826699000,-154.5,0.00038297,60]
[424396660,1780826699000,-350.0,0.00038279,50]
[424396669,1780826700000,-81733.0,0.000383,30]
[424396670,1780826700000,-457.881017,0.000383,30]
[424396672,1780826700000,-343.881006,0.000383,30]
[424396671,1780826700000,-346.881006,0.000383,30]
[424396673,1780826700000,-349.881006,0.000383,30]
[424396674,1780826700000,-346.881006,0.000383,30]
[424396676,1780826700000,-349.881006,0.000383,30]
[424396675,1780826700000,-343.881006,0.000383,30]
[424396677,1780826700000,-346.881006,0.000383,30]
[424396678,1780826700000,-343.881006,0.000383,30]
[424396679,1780826700000,-349.881006,0.000383,30]
[424396680,1780826700000,-346.881006,0.000383,30]
[424396681,1780826700000,-343.881006,0.000383,30]
[424396682,1780826700000,-349.881006,0.000383,30]
[424396683,1780826701000,-346.881006,0.000383,30]
[424396685,1780826701000,-349.881006,0.000383,30]
[424396684,1780826701000,-343.881006,0.000383,30]
[424396687,1780826701000,-343.881006,0.000383,30]
[424396688,1780826701000,-349.881006,0.000383,30]
[424396689,1780826701000,-346.881006,0.000383,30]
[424396686,1780826701000,-346.881006,0.000383,30]
[424396690,1780826701000,-343.881006,0.000383,30]
[424396692,1780826701000,-346.881006,0.000383,30]
[424396693,1780826701000,-343.881006,0.000383,30]
[424396697,1780826701000,-349.881006,0.000383,30]
[424396694,1780826701000,-349.881006,0.000383,30]
[424396695,1780826701000,-346.881006,0.000383,30]
[424396696,1780826701000,-343.881006,0.000383,30]
[424396691,1780826701000,-349.881006,0.000383,30]
[424396698,1780826702000,-346.881006,0.000383,30]
[424396700,1780826702000,-349.881006,0.000383,30]
[424396699,1780826702000,-343.881006,0.000383,30]
[424396701,1780826702000,-346.881006,0.000383,30]
[424396702,1780826702000,-343.881006,0.000383,30]
[424396703,1780826702000,-349.881006,0.000383,30]
[424396704,1780826702000,-346.881006,0.000383,30]
[424396713,1780826703000,-301.303012,0.000383,30]
[424396715,1780826703000,-301.303012,0.000383,30]
[424396714,1780826703000,-301.303012,0.000383,30]
[424396716,1780826703000,-342.535888,0.000383,30]
[424396717,1780826703000,-342.535888,0.000383,30]
[424396718,1780826703000,-301.303012,0.000383,30]
[424396724,1780826703000,-438.48532,0.000383,30]
[424396721,1780826703000,-438.48532,0.000383,30]
[424396720,1780826703000,-342.535888,0.000383,30]
[424396722,1780826703000,-151.0,0.000383,30]
[424396723,1780826703000,-362.281435,0.000383,30]
[424396725,1780826703000,-151.0,0.000383,30]
[424396726,1780826703000,-362.281435,0.000383,30]
[424396719,1780826703000,-342.535888,0.000383,30]
[424396727,1780826704000,-151.0,0.000383,30]
[424396728,1780826704000,-438.48532,0.000383,30]
[424396729,1780826704000,-345.0,0.000383,30]
[424396732,1780826704000,-345.0,0.000383,30]
[424396731,1780826704000,-438.48532,0.000383,30]
[424396734,1780826704000,-345.0,0.000383,30]
[424396730,1780826704000,-362.281435,0.000383,30]
[424396735,1780826704000,-151.0,0.000383,30]
[424396736,1780826704000,-345.0,0.000383,30]
[424396737,1780826704000,-151.0,0.000383,30]
[424396738,1780826704000,-151.0,0.000383,30]
[424396739,1780826704000,-151.0,0.000383,30]
[424396740,1780826704000,-151.0,0.000383,30]
[424396741,1780826704000,-151.0,0.000383,30]
[424396733,1780826704000,-362.281435,0.000383,30]
[424396742,1780826705000,-181.56,0.0003832,60]
[424396744,1780826705000,-502.08362884,0.00038329,120]
[424396745,1780826705000,-181.85296058,0.00038341,60]
[424396746,1780826705000,-150.0,0.00038342,120]
[424396747,1780826705000,-154.5,0.00038347,60]
[424396748,1780826705000,-155.0,0.00038356,120]
[424396743,1780826705000,-244.35648974,0.00038329,120]
[424396750,1780826705000,-717.0,0.00038356,120]
[424396751,1780826705000,-159.0,0.00038356,120]
[424396753,1780826705000,-1000.0,0.00038356,120]
[424396752,1780826705000,-202.36,0.00038356,120]
[424396754,1780826705000,-844.85789805,0.00038356,60]
[424396755,1780826705000,-377.83914852,0.00038356,30]
[424396749,1780826705000,-172.0,0.00038356,120]
[424396756,1780826706000,-222.85114067,0.00038356,120]
[424396757,1780826706000,-5323.0,0.00038356,120]
[424396758,1780826706000,-610.0,0.00038356,120]
[424396760,1780826706000,607.88803442,0.00029863,60]
[424396761,1780826706000,150.0,0.000373,120]
[424396762,1780826706000,20000.0,0.00038,120]
[424396759,1780826706000,-607.0,0.00038356,120]
[424396765,1780826707000,776.25,0.00029582,30]
[424396764,1780826707000,904.78,0.00029408,30]
[424396763,1780826707000,184.708643,0.00030822,30]
[424396766,1780826708000,500.0,0.00029863,60]
[424396767,1780826708000,500.0,0.00029863,60]
[424396768,1780826708000,1127.97,0.00029489,30]
[424396769,1780826708000,904.78,0.0002965,30]
[424396770,1780826708000,500.0,0.00029863,60]
[424396773,1780826708000,150.0,0.000374,120]
[424396772,1780826708000,776.25,0.00029766,30]
[424396777,1780826708000,500.0,0.00029863,60]
[424396776,1780826708000,500.0,0.00029863,60]
[424396771,1780826708000,150.83746878,0.00038036,30]
[424396774,1780826708000,500.0,0.00029863,60]
[424396775,1780826708000,500.0,0.00029863,60]
[424396788,1780826709000,312.558189,0.00034743,120]
[424396787,1780826709000,228.0953843,0.00029863,60]
[424396786,1780826709000,1127.97,0.00029704,30]
[424396778,1780826709000,904.78,0.00029893,30]
[424396784,1780826709000,500.0,0.00029863,60]
[424396783,1780826709000,151.0,0.00038,120]
[424396782,1780826709000,500.0,0.00029863,60]
[424396781,1780826709000,500.0,0.00029863,60]
[424396780,1780826709000,776.25,0.00029951,30]
[424396779,1780826709000,500.0,0.00029863,60]
[424396785,1780826709000,500.0,0.00029863,60]
[424396797,1780826802000,2000.0,0.0003013,120]
[424396798,1780826810000,-266.3640838,7.243e-05,2]
[424396799,1780826829000,181.7,0.00030137,120]
[424396826,1780826963000,-461.37472712,7.243e-05,2]
[424396825,1780826963000,-233.6359162,7.243e-05,2]
[424396827,1780827010000,151.0,0.0003,120]
[424396837,1780827031000,-108.94415124,7.243e-05,2]
[424396835,1780827031000,-500.0,7.243e-05,2]
[424396836,1780827031000,-500.0,7.243e-05,2]
[424396834,1780827031000,-500.0,7.243e-05,2]
[424396833,1780827031000,-500.0,7.243e-05,2]
[424396841,1780827032000,-500.0,7.243e-05,2]
[424396846,1780827032000,-500.0,7.243e-05,2]
[424396847,1780827032000,-500.0,7.243e-05,2]
[424396845,1780827032000,-500.0,7.243e-05,2]
[424396844,1780827032000,-500.0,7.243e-05,2]